[Event "*** Titled Tuesday Blitz"]
[Site "Chess.com"]
[Date "2019.07.02"]
[Round "1"]
[White "GrigorGrigorov"]
[Black "Vamostodorecto"]
[Result "1-0"]
[WhiteElo "2772"]
[BlackElo "2401"]
[TimeControl "180+2"]
[EndTime "13:07:35 PDT"]
[Termination "GrigorGrigorov won by resignation"]

1. d4 {[%clk 0:03:01.9]} 1... Nf6 {[%clk 0:02:59.4]} 2. c4 {[%clk 0:03:02.5]}
2... g6 {[%clk 0:03:00]} 3. g3 {[%clk 0:03:03.5]} 3... d5 {[%clk 0:03:00.5]} 4.
cxd5 {[%clk 0:03:01.8]} 4... Nxd5 {[%clk 0:03:02.4]} 5. Bg2 {[%clk 0:03:02.5]}
5... Bg7 {[%clk 0:03:03.4]} 6. Nf3 {[%clk 0:03:03.5]} 6... O-O {[%clk
0:03:03.6]} 7. O-O {[%clk 0:03:03.7]} 7... Nb6 {[%clk 0:03:02.9]} 8. Nc3 {[%clk
0:03:03.7]} 8... Nc6 {[%clk 0:03:01.1]} 9. e3 {[%clk 0:03:04.5]} 9... a5 {[%clk
0:02:55]} 10. h3 {[%clk 0:03:01.1]} 10... h6 {[%clk 0:02:42.3]} 11. Qe2 {[%clk
0:02:46.2]} 11... Be6 {[%clk 0:02:42.3]} 12. Rd1 {[%clk 0:02:45.6]} 12... Nb4
{[%clk 0:02:33.5]} 13. Ne1 {[%clk 0:02:30.2]} 13... Qc8 {[%clk 0:02:32.8]} 14.
Kh2 {[%clk 0:02:27]} 14... Bc4 {[%clk 0:02:14.4]} 15. Qd2 {[%clk 0:02:21.3]}
15... c5 {[%clk 0:02:13.2]} 16. d5 {[%clk 0:02:05.3]} 16... Rd8 {[%clk 0:01:03]}
17. e4 {[%clk 0:02:04.8]} 17... f5 {[%clk 0:00:45.6]} 18. b3 {[%clk 0:01:46.8]}
18... fxe4 {[%clk 0:00:35.3]} 19. bxc4 {[%clk 0:01:44]} 19... Nxc4 {[%clk
0:00:37.2]} 20. Qe2 {[%clk 0:01:43]} 20... Bxc3 {[%clk 0:00:36.7]} 21. Qxc4
{[%clk 0:01:42.8]} 21... Bxa1 {[%clk 0:00:36.2]} 22. Bxh6 {[%clk 0:01:24.7]}
22... Bf6 {[%clk 0:00:26.5]} 23. Bxe4 {[%clk 0:01:24.8]} 23... Kh7 {[%clk
0:00:20.5]} 24. Be3 {[%clk 0:01:23.7]} 24... b6 {[%clk 0:00:19.7]} 25. a3 {[%clk
0:01:16.9]} 25... Qa6 {[%clk 0:00:18.2]} 26. Qc1 {[%clk 0:01:05.9]} 26... Na2
{[%clk 0:00:17.5]} 27. Qc2 {[%clk 0:01:05.1]} 27... Nc3 {[%clk 0:00:18.1]} 28.
Bxg6+ {[%clk 0:01:06.1]} 28... Kg7 {[%clk 0:00:18.2]} 29. Bh5 {[%clk 0:00:55.5]}
29... Kf8 {[%clk 0:00:07.1]} 30. Bh6+ {[%clk 0:00:53.9]} 30... Bg7 {[%clk
0:00:06.6]} 31. Qf5+ {[%clk 0:00:53.2]} 1-0

[Event "*** Titled Tuesday Blitz"]
[Site "Chess.com"]
[Date "2019.07.02"]
[Round "1"]
[White "Pechen_Yeltsina"]
[Black "kasparicy"]
[Result "1-0"]
[WhiteElo "2680"]
[BlackElo "2327"]
[TimeControl "180+2"]
[EndTime "13:07:39 PDT"]
[Termination "Pechen_Yeltsina won by resignation"]

1. e4 {[%clk 0:03:01.2]} 1... c5 {[%clk 0:03:00]} 2. Nf3 {[%clk 0:03:01.6]} 2...
d6 {[%clk 0:03:00.7]} 3. g3 {[%clk 0:03:02.6]} 3... Nf6 {[%clk 0:03:01.6]} 4. d3
{[%clk 0:03:02.4]} 4... e6 {[%clk 0:03:02.4]} 5. Bg2 {[%clk 0:03:00.6]} 5... Be7
{[%clk 0:03:01.4]} 6. O-O {[%clk 0:03:00.4]} 6... a6 {[%clk 0:03:02.4]} 7. Re1
{[%clk 0:03:00.2]} 7... Qc7 {[%clk 0:03:03.9]} 8. c3 {[%clk 0:02:58.6]} 8... b5
{[%clk 0:03:04.2]} 9. d4 {[%clk 0:02:59.1]} 9... Bb7 {[%clk 0:03:03.3]} 10. e5
{[%clk 0:02:51.1]} 10... Nd5 {[%clk 0:03:02.3]} 11. Nbd2 {[%clk 0:02:45.8]}
11... O-O {[%clk 0:03:02.3]} 12. Ne4 {[%clk 0:02:45.4]} 12... dxe5 {[%clk
0:03:00.3]} 13. dxe5 {[%clk 0:02:47.3]} 13... Nd7 {[%clk 0:02:59.6]} 14. Bg5
{[%clk 0:02:41.8]} 14... Bxg5 {[%clk 0:02:50.4]} 15. Nexg5 {[%clk 0:02:43.7]}
15... h6 {[%clk 0:02:51.4]} 16. Ne4 {[%clk 0:02:43.6]} 16... Rad8 {[%clk
0:02:46]} 17. Qc2 {[%clk 0:02:43]} 17... c4 {[%clk 0:02:35.8]} 18. h4 {[%clk
0:02:23.3]} 18... Nxe5 {[%clk 0:02:28.9]} 19. Nxe5 {[%clk 0:02:24]} 19... Qxe5
{[%clk 0:02:30.1]} 20. Ng5 {[%clk 0:02:25.2]} 20... Qf5 {[%clk 0:02:31.1]} 21.
Be4 {[%clk 0:02:26.6]} 21... Qg4 {[%clk 0:02:15.3]} 22. Bxd5 {[%clk 0:02:27.6]}
22... hxg5 {[%clk 0:02:13.8]} 23. Bxb7 {[%clk 0:02:28.1]} 23... gxh4 {[%clk
0:02:15.3]} 24. Qe2 {[%clk 0:02:19.3]} 24... Qg5 {[%clk 0:02:00.2]} 25. Qe3
{[%clk 0:02:17.4]} 25... Qe7 {[%clk 0:02:00.8]} 26. Bg2 {[%clk 0:02:14.1]} 26...
hxg3 {[%clk 0:02:02]} 27. Qxg3 {[%clk 0:02:14.6]} 27... Rd3 {[%clk 0:02:03.3]}
28. Re3 {[%clk 0:02:16]} 28... Rfd8 {[%clk 0:02:03.9]} 29. Rae1 {[%clk
0:02:15.8]} 29... Rd2 {[%clk 0:01:58.5]} 30. R1e2 {[%clk 0:02:12.5]} 30... Rxe2
{[%clk 0:01:57.3]} 31. Rxe2 {[%clk 0:02:13]} 31... Rd1+ {[%clk 0:01:59.1]} 32.
Kh2 {[%clk 0:02:13.2]} 32... g6 {[%clk 0:01:58.7]} 33. Bf3 {[%clk 0:02:11.1]}
33... Rd3 {[%clk 0:01:52.4]} 34. Kg2 {[%clk 0:02:05.2]} 34... Qf6 {[%clk
0:01:46.4]} 35. Re3 {[%clk 0:01:57.3]} 35... Rd2 {[%clk 0:01:44.5]} 36. Re2
{[%clk 0:01:58.6]} 36... Rd3 {[%clk 0:01:42.2]} 37. Re4 {[%clk 0:01:40.4]} 37...
Rd2 {[%clk 0:01:40.2]} 38. Rf4 {[%clk 0:01:13.8]} 38... Qe5 {[%clk 0:01:33]} 39.
Qh4 {[%clk 0:01:07]} 39... Rxb2 {[%clk 0:01:19.3]} 40. Rd4 {[%clk 0:01:05.9]}
40... Kg7 {[%clk 0:00:33.9]} 41. Rd8 {[%clk 0:01:05.6]} 41... Rxf2+ {[%clk
0:00:35.1]} 42. Kxf2 {[%clk 0:01:05.3]} 42... Qc5+ {[%clk 0:00:35]} 43. Kg2
{[%clk 0:01:06.1]} 1-0

[Event "*** Titled Tuesday Blitz"]
[Site "Chess.com"]
[Date "2019.07.02"]
[Round "1"]
[White "Berardino"]
[Black "Olga_Zhuravleva"]
[Result "1-0"]
[WhiteElo "2531"]
[BlackElo "2130"]
[TimeControl "180+2"]
[EndTime "13:07:39 PDT"]
[Termination "Berardino won by checkmate"]

1. d4 {[%clk 0:03:01.9]} 1... g6 {[%clk 0:02:57.3]} 2. c4 {[%clk 0:03:02.4]}
2... Bg7 {[%clk 0:02:58]} 3. e4 {[%clk 0:03:03.8]} 3... d6 {[%clk 0:02:59.1]} 4.
Nc3 {[%clk 0:03:03.9]} 4... Nc6 {[%clk 0:03:00.2]} 5. Be3 {[%clk 0:03:01.9]}
5... e5 {[%clk 0:03:01]} 6. Nge2 {[%clk 0:03:02.4]} 6... Nf6 {[%clk 0:02:58.6]}
7. d5 {[%clk 0:02:58]} 7... Ne7 {[%clk 0:02:59.6]} 8. f3 {[%clk 0:02:59.2]} 8...
O-O {[%clk 0:03:01]} 9. Qd2 {[%clk 0:03:00]} 9... Ne8 {[%clk 0:02:59.5]} 10. g4
{[%clk 0:03:00.6]} 10... a6 {[%clk 0:02:58.8]} 11. Ng3 {[%clk 0:02:48.5]} 11...
f5 {[%clk 0:02:53.9]} 12. gxf5 {[%clk 0:02:45]} 12... gxf5 {[%clk 0:02:55]} 13.
exf5 {[%clk 0:02:44.3]} 13... Nxf5 {[%clk 0:02:55.5]} 14. Nxf5 {[%clk
0:02:42.2]} 14... Bxf5 {[%clk 0:02:56.3]} 15. Rg1 {[%clk 0:02:41]} 15... Kh8
{[%clk 0:02:55.7]} 16. O-O-O {[%clk 0:02:39.3]} 16... Bg6 {[%clk 0:02:54.5]} 17.
Bd3 {[%clk 0:02:39.9]} 17... Bxd3 {[%clk 0:02:49.4]} 18. Qxd3 {[%clk 0:02:40.9]}
18... Rxf3 {[%clk 0:02:50.5]} 19. Qe2 {[%clk 0:02:19.1]} 19... Rh3 {[%clk
0:02:41.7]} 20. Rg4 {[%clk 0:01:41]} 20... Nf6 {[%clk 0:02:33.2]} 21. Rg2 {[%clk
0:01:18.7]} 21... Qf8 {[%clk 0:02:20.7]} 22. Kb1 {[%clk 0:01:15]} 22... Bh6
{[%clk 0:02:15.2]} 23. Bg1 {[%clk 0:01:03]} 23... Qf7 {[%clk 0:02:11.3]} 24. Rf1
{[%clk 0:01:03]} 24... Rf8 {[%clk 0:02:08.5]} 25. Ne4 {[%clk 0:00:53]} 25... Bf4
{[%clk 0:01:54]} 26. Rxf4 {[%clk 0:00:50.5]} 26... exf4 {[%clk 0:01:54.1]} 27.
Bd4 {[%clk 0:00:51.4]} 27... Rh6 {[%clk 0:01:13.7]} 28. Qf3 {[%clk 0:00:31.9]}
28... Rg8 {[%clk 0:01:05.1]} 29. Qxf4 {[%clk 0:00:21.5]} 29... Rxg2 {[%clk
0:00:59.8]} 30. Qxh6 {[%clk 0:00:22.5]} 30... Qg6 {[%clk 0:00:43.5]} 31. Qf8+
{[%clk 0:00:21.9]} 31... Qg8 {[%clk 0:00:42.4]} 32. Bxf6+ {[%clk 0:00:22.2]}
32... Rg7 {[%clk 0:00:43.2]} 33. Bxg7# {[%clk 0:00:23.4]} 1-0

[Event "*** Titled Tuesday Blitz"]
[Site "Chess.com"]
[Date "2019.07.02"]
[Round "1"]
[White "Yaacovn"]
[Black "playerorkinyo"]
[Result "0-1"]
[WhiteElo "2745"]
[BlackElo "2414"]
[TimeControl "180+2"]
[EndTime "13:07:43 PDT"]
[Termination "playerorkinyo won by resignation"]

1. d4 {[%clk 0:03:01.8]} 1... Nf6 {[%clk 0:03:00.8]} 2. Nf3 {[%clk 0:03:01.9]}
2... g6 {[%clk 0:03:01.7]} 3. e3 {[%clk 0:02:59.7]} 3... Bg7 {[%clk 0:03:01.5]}
4. Be2 {[%clk 0:03:00.1]} 4... O-O {[%clk 0:03:02.4]} 5. b3 {[%clk 0:03:00.7]}
5... b6 {[%clk 0:03:03.5]} 6. Bb2 {[%clk 0:03:01.7]} 6... Bb7 {[%clk 0:03:04.4]}
7. O-O {[%clk 0:03:01.4]} 7... d6 {[%clk 0:03:06.1]} 8. c4 {[%clk 0:03:01.1]}
8... Nbd7 {[%clk 0:03:01.4]} 9. Qc2 {[%clk 0:02:58.3]} 9... Ne4 {[%clk
0:02:58.5]} 10. d5 {[%clk 0:02:58.2]} 10... Bxb2 {[%clk 0:02:52.5]} 11. Qxb2
{[%clk 0:02:57.1]} 11... c6 {[%clk 0:02:48.8]} 12. dxc6 {[%clk 0:02:52.5]} 12...
Bxc6 {[%clk 0:02:46.4]} 13. Nd4 {[%clk 0:02:53.7]} 13... Bb7 {[%clk 0:02:47.3]}
14. f3 {[%clk 0:02:52.8]} 14... Nef6 {[%clk 0:02:46.5]} 15. e4 {[%clk
0:02:53.5]} 15... a6 {[%clk 0:02:47.9]} 16. Nc3 {[%clk 0:02:54.1]} 16... Rc8
{[%clk 0:02:48.7]} 17. Rad1 {[%clk 0:02:54.3]} 17... Qc7 {[%clk 0:02:50.1]} 18.
Qd2 {[%clk 0:02:54.7]} 18... Rfd8 {[%clk 0:02:50.7]} 19. Qe3 {[%clk 0:02:53.1]}
19... e6 {[%clk 0:02:48]} 20. Rd2 {[%clk 0:02:53.7]} 20... d5 {[%clk 0:02:46.7]}
21. cxd5 {[%clk 0:02:43.3]} 21... Qxc3 {[%clk 0:02:40.9]} 22. Qxc3 {[%clk
0:02:43.8]} 22... Rxc3 {[%clk 0:02:42.8]} 23. dxe6 {[%clk 0:02:45.3]} 23... fxe6
{[%clk 0:02:35.2]} 24. Nxe6 {[%clk 0:02:45.8]} 24... Re8 {[%clk 0:02:36.5]} 25.
Nf4 {[%clk 0:02:41.9]} 25... Nc5 {[%clk 0:02:32.3]} 26. Rd6 {[%clk 0:02:38.9]}
26... Nfd7 {[%clk 0:02:27.9]} 27. Rfd1 {[%clk 0:02:38.2]} 27... g5 {[%clk
0:02:20.8]} 28. Nh5 {[%clk 0:02:37]} 28... Rc2 {[%clk 0:02:05.3]} 29. Bc4+
{[%clk 0:02:32.7]} 29... Kh8 {[%clk 0:02:05.8]} 30. Rxd7 {[%clk 0:02:32.5]}
30... Nxd7 {[%clk 0:01:58.7]} 31. Rxd7 {[%clk 0:02:33.7]} 31... Bc8 {[%clk
0:01:39.7]} 32. Rc7 {[%clk 0:02:31.9]} 32... Rf8 {[%clk 0:01:35.7]} 33. e5
{[%clk 0:02:21.1]} 33... b5 {[%clk 0:01:34.5]} 34. Nf6 {[%clk 0:02:08.7]} 34...
Bf5 {[%clk 0:01:26.7]} 35. Nxh7 {[%clk 0:01:28.6]} 35... Rc1+ {[%clk 0:01:18]}
36. Kf2 {[%clk 0:01:29.1]} 36... Bxh7 {[%clk 0:01:19]} 37. Rf7 {[%clk
0:01:23.8]} 37... Rxf7 {[%clk 0:01:17.4]} 38. Bxf7 {[%clk 0:01:25.2]} 38... Kg7
{[%clk 0:01:18.4]} 39. e6 {[%clk 0:01:26]} 39... Rc2+ {[%clk 0:01:16.7]} 40. Kg3
{[%clk 0:01:26.7]} 40... Rxa2 {[%clk 0:01:14.3]} 0-1

[Event "*** Titled Tuesday Blitz"]
[Site "Chess.com"]
[Date "2019.07.02"]
[Round "1"]
[White "ozates"]
[Black "promen1999"]
[Result "1-0"]
[WhiteElo "2299"]
[BlackElo "2602"]
[TimeControl "180+2"]
[EndTime "13:07:49 PDT"]
[Termination "ozates won by resignation"]

1. e4 {[%clk 0:02:57.5]} 1... c5 {[%clk 0:02:58.9]} 2. Nf3 {[%clk 0:02:56.7]}
2... e6 {[%clk 0:02:58.7]} 3. d4 {[%clk 0:02:57.1]} 3... cxd4 {[%clk 0:02:59.6]}
4. Nxd4 {[%clk 0:02:59]} 4... Nc6 {[%clk 0:03:00.6]} 5. Nc3 {[%clk 0:03:00.3]}
5... Qc7 {[%clk 0:03:01.5]} 6. Be3 {[%clk 0:03:01.7]} 6... a6 {[%clk 0:03:02.2]}
7. Qf3 {[%clk 0:03:02.5]} 7... Bd6 {[%clk 0:02:50.5]} 8. O-O-O {[%clk
0:03:01.1]} 8... Be5 {[%clk 0:02:49.2]} 9. g3 {[%clk 0:02:58.7]} 9... Nf6 {[%clk
0:02:47]} 10. Qe2 {[%clk 0:02:51.5]} 10... b5 {[%clk 0:02:46.9]} 11. f4 {[%clk
0:02:44.3]} 11... Bxd4 {[%clk 0:02:39.9]} 12. Bxd4 {[%clk 0:02:45.1]} 12... Nxd4
{[%clk 0:02:41.2]} 13. Rxd4 {[%clk 0:02:47]} 13... Bb7 {[%clk 0:02:42.7]} 14.
Bg2 {[%clk 0:02:47.4]} 14... Qc5 {[%clk 0:02:03.8]} 15. Rhd1 {[%clk 0:02:45.9]}
15... e5 {[%clk 0:02:02.6]} 16. R4d2 {[%clk 0:02:14.7]} 16... Rc8 {[%clk
0:02:00.8]} 17. f5 {[%clk 0:02:12.2]} 17... b4 {[%clk 0:01:48.2]} 18. Nd5 {[%clk
0:02:08.2]} 18... Bxd5 {[%clk 0:01:48.6]} 19. exd5 {[%clk 0:02:10.1]} 19... d6
{[%clk 0:01:50]} 20. g4 {[%clk 0:02:10]} 20... h6 {[%clk 0:01:42.9]} 21. h4
{[%clk 0:02:10.7]} 21... a5 {[%clk 0:01:34.4]} 22. g5 {[%clk 0:02:08.7]} 22...
hxg5 {[%clk 0:01:15.5]} 23. hxg5 {[%clk 0:02:10.6]} 23... Nd7 {[%clk 0:01:16.9]}
24. Qg4 {[%clk 0:01:52.4]} 24... a4 {[%clk 0:01:01.5]} 25. Kb1 {[%clk
0:01:49.5]} 25... a3 {[%clk 0:01:02]} 26. f6 {[%clk 0:01:40.1]} 26... g6 {[%clk
0:00:54.3]} 27. Bh3 {[%clk 0:01:32.9]} 27... Rc7 {[%clk 0:00:54.8]} 28. Rh1
{[%clk 0:01:26.2]} 28... Nb6 {[%clk 0:00:39.2]} 29. Qe4 {[%clk 0:00:40.5]} 29...
Nc4 {[%clk 0:00:37.7]} 30. Bd7+ {[%clk 0:00:29.9]} 30... Kxd7 {[%clk 0:00:14.2]}
31. Qg4+ {[%clk 0:00:29.4]} 1-0

[Event "*** Titled Tuesday Blitz"]
[Site "Chess.com"]
[Date "2019.07.02"]
[Round "1"]
[White "mitrabhaa"]
[Black "WPWPWP-2015"]
[Result "1-0"]
[WhiteElo "2734"]
[BlackElo "2383"]
[TimeControl "180+2"]
[EndTime "13:07:54 PDT"]
[Termination "mitrabhaa won on time"]

1. d4 {[%clk 0:03:01.1]} 1... Nf6 {[%clk 0:02:59.8]} 2. Nf3 {[%clk 0:03:02.5]}
2... d5 {[%clk 0:02:56.9]} 3. c4 {[%clk 0:03:03.1]} 3... c6 {[%clk 0:02:56.4]}
4. e3 {[%clk 0:03:04.1]} 4... Bf5 {[%clk 0:02:56.1]} 5. Nc3 {[%clk 0:03:04.8]}
5... e6 {[%clk 0:02:56.6]} 6. Qb3 {[%clk 0:03:05.7]} 6... Qc7 {[%clk 0:02:56]}
7. Nh4 {[%clk 0:03:06.1]} 7... Be4 {[%clk 0:02:52.5]} 8. f3 {[%clk 0:03:06.7]}
8... Bg6 {[%clk 0:02:52.9]} 9. Bd2 {[%clk 0:03:07.5]} 9... Nbd7 {[%clk
0:02:51.7]} 10. g3 {[%clk 0:03:04.6]} 10... Bd6 {[%clk 0:02:50.6]} 11. Kf2
{[%clk 0:03:05.5]} 11... dxc4 {[%clk 0:02:42.7]} 12. Bxc4 {[%clk 0:03:05.1]}
12... b5 {[%clk 0:02:43.5]} 13. Be2 {[%clk 0:03:05.8]} 13... a6 {[%clk
0:02:41.2]} 14. Rac1 {[%clk 0:03:06.4]} 14... Qb6 {[%clk 0:02:39.5]} 15. Kg2
{[%clk 0:03:03.9]} 15... O-O {[%clk 0:02:38]} 16. a4 {[%clk 0:03:02.3]} 16... b4
{[%clk 0:02:28]} 17. Na2 {[%clk 0:02:56.7]} 17... a5 {[%clk 0:02:22.7]} 18. Nxg6
{[%clk 0:02:57]} 18... hxg6 {[%clk 0:02:22.8]} 19. Rhd1 {[%clk 0:02:49.8]} 19...
c5 {[%clk 0:02:21.8]} 20. Bb5 {[%clk 0:02:36.9]} 20... cxd4 {[%clk 0:02:17.6]}
21. exd4 {[%clk 0:02:38]} 21... Rac8 {[%clk 0:02:14.6]} 22. Rxc8 {[%clk
0:02:37.4]} 22... Rxc8 {[%clk 0:02:14.7]} 23. Nc1 {[%clk 0:02:38.9]} 23... Rd8
{[%clk 0:01:47.2]} 24. Ne2 {[%clk 0:02:38.9]} 24... Nd5 {[%clk 0:01:46.1]} 25.
Rc1 {[%clk 0:02:39.6]} 25... N7f6 {[%clk 0:01:35.4]} 26. Bg5 {[%clk 0:02:37.2]}
26... Qb8 {[%clk 0:01:23.4]} 27. Rc6 {[%clk 0:02:36.7]} 27... Rc8 {[%clk
0:01:22.9]} 28. Qc2 {[%clk 0:02:37.3]} 28... Rxc6 {[%clk 0:01:21.3]} 29. Qxc6
{[%clk 0:02:38.2]} 29... Qc7 {[%clk 0:01:21.9]} 30. Qa8+ {[%clk 0:02:26.7]}
30... Kh7 {[%clk 0:01:22.3]} 31. Bd3 {[%clk 0:02:28]} 31... b3 {[%clk
0:01:01.7]} 32. Bd2 {[%clk 0:02:10.9]} 32... Bb4 {[%clk 0:00:48.8]} 33. Bc1
{[%clk 0:02:11.8]} 33... Nb6 {[%clk 0:00:44.6]} 34. Qa6 {[%clk 0:02:08.4]} 34...
Nxa4 {[%clk 0:00:43]} 35. Qb5 {[%clk 0:02:05.6]} 35... Nb6 {[%clk 0:00:42.3]}
36. h4 {[%clk 0:02:07]} 36... Nbd5 {[%clk 0:00:41]} 37. Bg5 {[%clk 0:02:07]}
37... Kg8 {[%clk 0:00:28.9]} 38. g4 {[%clk 0:02:02.8]} 38... Qc8 {[%clk
0:00:16.8]} 39. Qa4 {[%clk 0:02:02.4]} 39... Be7 {[%clk 0:00:10.2]} 40. Qxb3
{[%clk 0:02:02.8]} 40... Nd7 {[%clk 0:00:10.9]} 41. Bd2 {[%clk 0:02:02.8]} 41...
N7b6 {[%clk 0:00:11.4]} 42. Bxa5 {[%clk 0:02:02.6]} 42... Nd7 {[%clk 0:00:12.5]}
43. Bd2 {[%clk 0:02:02.8]} 43... Bxh4 {[%clk 0:00:09.6]} 44. g5 {[%clk
0:01:58.3]} 44... Qc7 {[%clk 0:00:09.9]} 45. f4 {[%clk 0:01:59.1]} 45... f6
{[%clk 0:00:07.4]} 46. Bxg6 {[%clk 0:01:59.1]} 46... fxg5 {[%clk 0:00:07]} 47.
Qh3 {[%clk 0:02:00.6]} 47... Qd8 {[%clk 0:00:06.4]} 48. Qxe6+ {[%clk 0:02:01]}
48... Kh8 {[%clk 0:00:04.3]} 49. Qxd5 {[%clk 0:02:02.2]} 49... gxf4 {[%clk
0:00:04.4]} 50. Qh5+ {[%clk 0:02:02.7]} 1-0

[Event "*** Titled Tuesday Blitz"]
[Site "Chess.com"]
[Date "2019.07.02"]
[Round "1"]
[White "Infernal_XaM"]
[Black "PIwan"]
[Result "1-0"]
[WhiteElo "2876"]
[BlackElo "2448"]
[TimeControl "180+2"]
[EndTime "13:07:57 PDT"]
[Termination "Infernal_XaM won by resignation"]

1. d4 {[%clk 0:03:01.9]} 1... d5 {[%clk 0:03:00.6]} 2. c4 {[%clk 0:03:01.4]}
2... dxc4 {[%clk 0:03:01.9]} 3. Nf3 {[%clk 0:02:58.3]} 3... Nf6 {[%clk
0:03:03.2]} 4. g3 {[%clk 0:02:59.2]} 4... b5 {[%clk 0:03:02.9]} 5. Bg2 {[%clk
0:02:59.9]} 5... Bb7 {[%clk 0:03:04.2]} 6. O-O {[%clk 0:03:01.1]} 6... e6 {[%clk
0:03:04.1]} 7. b3 {[%clk 0:03:02.3]} 7... cxb3 {[%clk 0:02:55.4]} 8. axb3 {[%clk
0:03:03.2]} 8... Nbd7 {[%clk 0:02:49.8]} 9. Bd2 {[%clk 0:03:01.4]} 9... Be7
{[%clk 0:02:46.4]} 10. Ba5 {[%clk 0:03:02.2]} 10... O-O {[%clk 0:02:44.6]} 11.
Nc3 {[%clk 0:03:01.7]} 11... a6 {[%clk 0:02:43]} 12. Qc2 {[%clk 0:03:02]} 12...
Nb6 {[%clk 0:02:42]} 13. e4 {[%clk 0:03:00.4]} 13... Rc8 {[%clk 0:02:39.7]} 14.
e5 {[%clk 0:02:55.1]} 14... Nfd5 {[%clk 0:02:37]} 15. Ne4 {[%clk 0:02:55.5]}
15... Nb4 {[%clk 0:02:30.4]} 16. Qb1 {[%clk 0:02:49.4]} 16... N6d5 {[%clk
0:02:24.8]} 17. h4 {[%clk 0:02:47.7]} 17... Qe8 {[%clk 0:02:11.2]} 18. Rc1
{[%clk 0:02:42.8]} 18... h6 {[%clk 0:01:47.6]} 19. Nc5 {[%clk 0:02:36.9]} 19...
Bxc5 {[%clk 0:01:43.6]} 20. Rxc5 {[%clk 0:02:37.6]} 20... Nc6 {[%clk 0:01:24.8]}
21. Bd2 {[%clk 0:02:37.7]} 21... Nb8 {[%clk 0:01:26]} 22. b4 {[%clk 0:02:27.8]}
22... Nd7 {[%clk 0:01:26.3]} 23. Rc2 {[%clk 0:02:24.7]} 23... f5 {[%clk
0:01:27.2]} 24. exf6 {[%clk 0:02:22.1]} 24... Rxf6 {[%clk 0:01:28.2]} 25. Nh2
{[%clk 0:02:16.9]} 25... Qf7 {[%clk 0:01:20.7]} 26. Qe1 {[%clk 0:02:12.7]} 26...
Rf8 {[%clk 0:01:16.3]} 27. f4 {[%clk 0:02:06]} 27... g5 {[%clk 0:00:04.2]} 28.
fxg5 {[%clk 0:02:04.4]} 28... Rf2 {[%clk 0:00:05.1]} 29. Be4 {[%clk 0:01:56.9]}
29... Rxh2 {[%clk 0:00:04.1]} 30. Kxh2 {[%clk 0:01:55.8]} 30... Qf2+ {[%clk
0:00:04.6]} 31. Qxf2 {[%clk 0:01:56.7]} 31... Rxf2+ {[%clk 0:00:06.5]} 32. Kg1
{[%clk 0:01:58]} 32... Re2 {[%clk 0:00:07.7]} 33. Re1 {[%clk 0:01:58.5]} 33...
Rxe1+ {[%clk 0:00:08.3]} 34. Bxe1 {[%clk 0:01:59.5]} 34... hxg5 {[%clk
0:00:10.2]} 35. hxg5 {[%clk 0:01:58.3]} 35... Nxb4 {[%clk 0:00:11.6]} 36. Bh7+
{[%clk 0:01:47.7]} 36... Kxh7 {[%clk 0:00:11.5]} 37. Rxc7 {[%clk 0:01:48.8]}
37... Nd3 {[%clk 0:00:07.3]} 38. Rxb7 {[%clk 0:01:42.1]} 38... Kg6 {[%clk
0:00:08.6]} 39. Rxd7 {[%clk 0:01:33.6]} 39... Nxe1 {[%clk 0:00:09.1]} 40. Kf2
{[%clk 0:01:34.8]} 40... Nd3+ {[%clk 0:00:09.5]} 41. Ke3 {[%clk 0:01:36.1]}
41... Nb4 {[%clk 0:00:10.6]} 42. Kf4 {[%clk 0:01:31.9]} 42... Nd3+ {[%clk
0:00:10.5]} 43. Ke4 {[%clk 0:01:30.3]} 43... Nb4 {[%clk 0:00:11.7]} 44. Rd6
{[%clk 0:01:29.8]} 44... Kxg5 {[%clk 0:00:12.8]} 45. Rxe6 {[%clk 0:01:31.1]}
45... a5 {[%clk 0:00:14.2]} 46. Rb6 {[%clk 0:01:31.2]} 46... a4 {[%clk
0:00:12.3]} 47. Rxb5+ {[%clk 0:01:32.3]} 1-0

[Event "*** Titled Tuesday Blitz"]
[Site "Chess.com"]
[Date "2019.07.02"]
[Round "1"]
[White "fish7728"]
[Black "DoHoChess"]
[Result "1-0"]
[WhiteElo "2249"]
[BlackElo "2565"]
[TimeControl "180+2"]
[EndTime "13:08:00 PDT"]
[Termination "fish7728 won by resignation"]

1. d4 {[%clk 0:02:58.5]} 1... Nf6 {[%clk 0:02:58.7]} 2. c4 {[%clk 0:02:57.7]}
2... e6 {[%clk 0:02:59.9]} 3. Nc3 {[%clk 0:02:57.2]} 3... Bb4 {[%clk 0:03:00.5]}
4. f3 {[%clk 0:02:58.3]} 4... c5 {[%clk 0:03:00.4]} 5. d5 {[%clk 0:02:58.8]}
5... O-O {[%clk 0:02:57.6]} 6. e4 {[%clk 0:02:58.9]} 6... b5 {[%clk 0:02:59]} 7.
Bd2 {[%clk 0:02:46.8]} 7... bxc4 {[%clk 0:02:57.5]} 8. Bxc4 {[%clk 0:02:47]}
8... Ba6 {[%clk 0:02:58.3]} 9. Qe2 {[%clk 0:02:40.9]} 9... Bxc4 {[%clk
0:02:56.3]} 10. Qxc4 {[%clk 0:02:41.3]} 10... exd5 {[%clk 0:02:57.3]} 11. Nxd5
{[%clk 0:02:38.8]} 11... Bxd2+ {[%clk 0:02:58]} 12. Kxd2 {[%clk 0:02:38.8]}
12... Nc6 {[%clk 0:02:20.9]} 13. Ne2 {[%clk 0:02:36.3]} 13... Nxd5 {[%clk
0:02:07]} 14. Qxd5 {[%clk 0:02:31.2]} 14... Qf6 {[%clk 0:02:07.2]} 15. Qxc5
{[%clk 0:02:14]} 15... Qxb2+ {[%clk 0:01:54.1]} 16. Ke3 {[%clk 0:02:04.1]} 16...
Rac8 {[%clk 0:01:46.5]} 17. Kf2 {[%clk 0:01:33.5]} 17... Nb4 {[%clk 0:01:13.8]}
18. Qd4 {[%clk 0:01:28.9]} 18... Qa3 {[%clk 0:01:14.5]} 19. Qxd7 {[%clk
0:01:01.4]} 19... Rfd8 {[%clk 0:01:01.4]} 20. Qf5 {[%clk 0:00:54.1]} 20... Rc2
{[%clk 0:00:57.6]} 21. Rad1 {[%clk 0:00:45.3]} 21... Nd3+ {[%clk 0:00:57.1]} 22.
Kg3 {[%clk 0:00:36.4]} 22... Rxe2 {[%clk 0:00:56.8]} 23. e5 {[%clk 0:00:37.3]}
23... Re3 {[%clk 0:00:20.3]} 24. Qg5 {[%clk 0:00:35.8]} 24... Qa5 {[%clk
0:00:14.7]} 25. Qxe3 {[%clk 0:00:33.9]} 25... Nb4 {[%clk 0:00:15.4]} 26. Rxd8+
{[%clk 0:00:31.3]} 26... Qxd8 {[%clk 0:00:17.3]} 27. Rb1 {[%clk 0:00:27.2]}
27... Nd5 {[%clk 0:00:17.5]} 28. Qd2 {[%clk 0:00:22.8]} 28... Qd7 {[%clk
0:00:16.8]} 29. Qxd5 {[%clk 0:00:21.6]} 29... Qe8 {[%clk 0:00:14.7]} 30. Rd1
{[%clk 0:00:20.1]} 30... h5 {[%clk 0:00:15.4]} 31. Qd8 {[%clk 0:00:20.8]} 1-0